[Event "Nordic Youth-ch A 2019"]
[Site "Borgarnes"]
[Date "2019.02.16"]
[Round "4.17"]
[White "Kvaloy, Aksel Bu"]
[Black "Koota, Ilkka"]
[Result "1-0"]
[ECO "C45"]
[WhiteElo "2066"]
[BlackElo "1514"]
[Annotator "NA"]
[PlyCount "61"]
[EventDate "2019.02.03"]
[EventType "swiss"]
[EventCountry "ISL"]
[SourceTitle "playchess.com"]
[Source "ChessBase"]
[SourceQuality "1"]
[TimeControl "5400+30"]

1. e4 {[%emt 0:00:00]} e5 {[%emt 0:00:00]} 2. Nf3 {[%emt 0:00:00]} Nc6 {[%emt 0:00:00]} 3. d4 {[%emt 0:00:00]} exd4 {[%emt 0:00:04]} 4. Nxd4 {[%emt 0:00:00]} Bc5 {[%emt 0:00:18]} 5. Be3 {[%emt 0:00:30]} Qf6 {[%emt 0:00:20]} 6. c3 {[%emt 0:01:01]} Nge7 {[%emt 0:00:18]} 7. Bb5 {[%emt 0:06:15]} a6 {[%emt 0:02:51]} 8. Ba4 {[%emt 0:02:32]} Ba7 {[%emt 0:04:00]} 9. O-O {[%emt 0:01:25]} b5 {[%emt 0:00:35]} 10. Bc2 {[%emt 0:01:13]} Bb7 {[%emt 0:00:26]} 11. Nxc6 {[%emt 0:04:58]} Qxc6 {[%emt 0:03:07]} 12. Bxa7 {[%emt 0:01:20]} Rxa7 {[%emt 0:00:07]} 13. Qd4 {[%emt 0:00:38]} Ra8 {[%emt 0:00:21]} 14. Qxg7 {[%emt 0:00:50]} Rg8 {[%emt 0:00:32]} 15. Qe5 {[%emt 0:11:10]} d6 {[%emt 0:02:19]} 16. Qh5 {[%emt 0:02:18]} Ng6 {[%emt 0:09:18]} 17. f4 {[%emt 0:09:36]} Qc5+ {[%emt 0:00:20]} 18. Qxc5 {[%emt 0:00:08]} dxc5 {[%emt 0:00:04]} 19. Nd2 {[%emt 0:04:27]} c4 {[%emt 0:02:27]} 20. g3 {[%emt 0:01:11]} Rd8 {[%emt 0:01:06]} 21. Rad1 {[%emt 0:00:14]} h5 {[%emt 0:03:51]} 22. Kf2 {[%emt 0:02:36]} h4 {[%emt 0:00:45]} 23. Nf3 {[%emt 0:01:54]} hxg3+ {[%emt 0:00:21]} 24. hxg3 {[%emt 0:00:09]} Nf8 {[%emt 0:01:34]} 25. Rxd8+ {[%emt 0:10:32]} Kxd8 {[%emt 0:00:14]} 26. Rh1 {[%emt 0:00:28]} Ke7 {[%emt 0:00:44]} 27. Nd4 {[%emt 0:03:17]} Nd7 {[%emt 0:04:08]} 28. a4 {[%emt 0:08:21]} c5 {[%emt 0:09:30]} 29. Nf5+ {[%emt 0:00:08]} Ke6 {[%emt 0:01:15]} 30. Rd1 {[%emt 0:01:08]} Rc8 {[%emt 0:02:44]} 31. Rd6# {[%emt 0:00:07] Kd5} 1-0

[Event "Nordic Youth-ch A 2019"]
[Site "Borgarnes"]
[Date "2019.02.16"]
[Round "4.18"]
[White "Medhus, Vitus Bondo"]
[Black "Olsen, William Alexander"]
[Result "1-0"]
[ECO "B12"]
[WhiteElo "1788"]
[BlackElo "1646"]
[Annotator "NA"]
[PlyCount "103"]
[EventDate "2019.02.03"]
[EventType "swiss"]
[EventCountry "ISL"]
[SourceTitle "playchess.com"]
[Source "ChessBase"]
[SourceQuality "1"]
[TimeControl "5400+30"]

1. e4 {[%emt 0:00:00]} c6 {[%emt 0:00:00]} 2. d4 {[%emt 0:00:00]} d5 {[%emt 0:00:00]} 3. f3 {[%emt 0:00:00]} dxe4 {[%emt 0:00:19]} 4. fxe4 {[%emt 0:00:10]} e5 {[%emt 0:00:05]} 5. Nf3 {[%emt 0:00:10]} exd4 {[%emt 0:00:07]} 6. Bc4 {[%emt 0:00:17]} Bc5 {[%emt 0:00:56]} 7. O-O {[%emt 0:01:12]} Nf6 {[%emt 0:00:46]} 8. Ng5 Be6 {[%emt 0:04:21]} 9. Bxe6 {[%emt 0:02:04]} fxe6 {[%emt 0:00:13]} 10. e5 {[%emt 0:00:17]} Qe7 {[%emt 0:03:31]} 11. exf6 {[%emt 0:00:25]} gxf6 {[%emt 0:00:08]} 12. Qh5+ {[%emt 0:00:20]} Kd7 {[%emt 0:00:17]} 13. Nd2 {[%emt 0:00:34]} Na6 {[%emt 0:03:58]} 14. Nde4 {[%emt 0:01:13]} Raf8 {[%emt 0:00:54]} 15. Nh3 e5 {[%emt 0:07:50]} 16. Qf5+ {[%emt 0:02:49]} Qe6 {[%emt 0:00:23]} 17. Nxf6+ {[%emt 0:00:40]} Ke7 {[%emt 0:02:22]} 18. Qxe6+ {[%emt 0:01:40]} Kxe6 {[%emt 0:00:33]} 19. Ng5+ {[%emt 0:00:38]} Ke7 {[%emt 0:00:22]} 20. Nfe4 {[%emt 0:01:47]} Rxf1+ {[%emt 0:00:32]} 21. Kxf1 {[%emt 0:00:34]} Rf8+ {[%emt 0:00:06]} 22. Ke2 {[%emt 0:00:33]} Bb6 {[%emt 0:00:25]} 23. Nf3 {[%emt 0:00:24]} Ke6 {[%emt 0:00:18]} 24. Bh6 {[%emt 0:00:40]} Rg8 {[%emt 0:00:12]} 25. g3 {[%emt 0:01:06]} Rg6 {[%emt 0:00:40]} 26. Bf8 {[%emt 0:00:50]} c5 {[%emt 0:00:18]} 27. Bd6 {[%emt 0:01:39]} Kd5 {[%emt 0:00:41]} 28. Nxe5 {[%emt 0:05:09]} Re6 {[%emt 0:00:23]} 29. Kf3 {[%emt 0:01:59]} c4 {[%emt 0:01:51]} 30. c3 {[%emt 0:03:51]} d3 {[%emt 0:00:27]} 31. b3 {[%emt 0:00:59]} Rxe5 {[%emt 0:02:32]} 32. bxc4+ {[%emt 0:01:27]} Ke6 {[%emt 0:00:17]} 33. Bxe5 {[%emt 0:00:26]} Kxe5 {[%emt 0:00:01]} 34. Rd1 {[%emt 0:00:42]} h5 {[%emt 0:00:49]} 35. Rxd3 {[%emt 0:00:20]} Bg1 {[%emt 0:00:51]} 36. Rd5+ {[%emt 0:00:13]} Ke6 {[%emt 0:00:15]} 37. Rxh5 {[%emt 0:00:09]} Bb6 {[%emt 0:00:15]} 38. Rg5 {[%emt 0:00:19]} Bd8 {[%emt 0:00:16]} 39. Rg4 {[%emt 0:00:32]} Nb8 {[%emt 0:00:31]} 40. Nc5+ {[%emt 0:01:02]} Kf5 {[%emt 0:00:26]} 41. Nxb7 {[%emt 0:00:53]} Bf6 {[%emt 0:00:18]} 42. h4 {[%emt 0:01:24]} Nd7 {[%emt 0:00:14]} 43. Rf4+ {[%emt 0:00:19]} Kg6 {[%emt 0:00:14]} 44. c5 {[%emt 0:00:52]} Ne5+ {[%emt 0:00:18]} 45. Ke4 {[%emt 0:00:30]} Nc6 {[%emt 0:00:33]} 46. h5+ {[%emt 0:01:10]} Kg7 {[%emt 0:00:32]} 47. g4 {[%emt 0:01:25]} Bxc3 {[%emt 0:00:22]} 48. g5 {[%emt 0:00:41]} Bd2 {[%emt 0:01:01]} 49. h6+ {[%emt 0:00:28]} Kh7 {[%emt 0:00:33]} 50. Rf7+ {[%emt 0:00:30]} Kh8 {[%emt 0:00:13]} 51. g6 {[%emt 0:01:02]} Bxh6 {[%emt 0:00:19]} 52. Rh7+ {[%emt 0:00:05]} 1-0

[Event "Nordic Youth-ch A 2019"]
[Site "Borgarnes"]
[Date "2019.02.16"]
[Round "4.19"]
[White "Knudsen, Philip Uhre"]
[Black "Smarason, Kristjan Ingi"]
[Result "1-0"]
[ECO "A04"]
[WhiteElo "1394"]
[BlackElo "1422"]
[Annotator "NA"]
[PlyCount "103"]
[EventDate "2019.02.03"]
[EventType "swiss"]
[EventCountry "ISL"]
[SourceTitle "playchess.com"]
[Source "ChessBase"]
[SourceQuality "1"]
[TimeControl "5400+30"]

1. Nf3 {[%emt 0:00:00]} c5 {[%emt 0:00:24]} 2. b3 {[%emt 0:00:00]} d5 {[%emt 0:00:34]} 3. Bb2 {[%emt 0:00:39]} Nf6 {[%emt 0:00:39]} 4. e3 {[%emt 0:00:11]} Bf5 {[%emt 0:00:42]} 5. d4 {[%emt 0:00:11]} e6 {[%emt 0:01:00]} 6. c4 {[%emt 0:00:39]} dxc4 {[%emt 0:00:29]} 7. bxc4 {[%emt 0:00:13]} Be7 {[%emt 0:00:57]} 8. Bd3 {[%emt 0:00:36]} Bxd3 {[%emt 0:00:28]} 9. Qxd3 {[%emt 0:00:03]} O-O {[%emt 0:01:11]} 10. O-O {[%emt 0:00:41]} Nc6 {[%emt 0:00:48]} 11. Nc3 {[%emt 0:00:29]} e5 {[%emt 0:01:51]} 12. d5 Nb4 {[%emt 0:01:59]} 13. Qf5 {[%emt 0:03:31]} Bd6 {[%emt 0:02:16]} 14. Nxe5 {[%emt 0:01:58]} Bxe5 {[%emt 0:00:55]} 15. Qxe5 {[%emt 0:01:13]} Nd3 {[%emt 0:01:06]} 16. Qf5 {[%emt 0:01:46]} Nxb2 {[%emt 0:01:03]} 17. e4 {[%emt 0:01:06]} Nxc4 {[%emt 0:00:50]} 18. Rad1 {[%emt 0:00:48]} Qd7 {[%emt 0:01:20]} 19. Qf3 {[%emt 0:02:13]} Rfe8 {[%emt 0:04:44]} 20. Rfe1 {[%emt 0:01:14]} Ne5 {[%emt 0:01:27]} 21. Qg3 {[%emt 0:00:39]} Qg4 {[%emt 0:01:55]} 22. Qe3 {[%emt 0:01:21]} Rac8 {[%emt 0:02:23]} 23. h3 {[%emt 0:00:47]} Qd7 {[%emt 0:04:44]} 24. f4 {[%emt 0:00:52]} Nc4 {[%emt 0:02:56]} 25. Qe2 {[%emt 0:00:02]} Nb6 {[%emt 0:03:42]} 26. e5 {[%emt 0:01:40]} Nfxd5 {[%emt 0:01:09]} 27. Nxd5 {[%emt 0:01:37]} Nxd5 {[%emt 0:00:12]} 28. Qf3 {[%emt 0:00:07]} Rcd8 {[%emt 0:02:15]} 29. Rd3 {[%emt 0:01:56]} c4 {[%emt 0:03:28]} 30. Rd4 {[%emt 0:00:35]} Qc6 {[%emt 0:01:36]} 31. Red1 {[%emt 0:01:21]} Qc5 {[%emt 0:00:57]} 32. Kh2 {[%emt 0:00:43]} c3 {[%emt 0:04:35]} 33. Rxd5 {[%emt 0:00:44]} Rxd5 {[%emt 0:00:16]} 34. Rxd5 {[%emt 0:01:12]} Qc6 {[%emt 0:00:30]} 35. Rd3 {[%emt 0:01:10]} Qxf3 {[%emt 0:01:25]} 36. Rxf3 {[%emt 0:00:09]} Rc8 {[%emt 0:00:16]} 37. Rf1 {[%emt 0:00:03]} c2 {[%emt 0:00:13]} 38. Rc1 {[%emt 0:00:11]} a5 {[%emt 0:00:24]} 39. a4 {[%emt 0:00:17]} Kf8 {[%emt 0:00:28]} 40. Kg1 {[%emt 0:00:08]} Ke7 {[%emt 0:00:12]} 41. Kf2 {[%emt 0:00:17]} Ke6 {[%emt 0:00:17]} 42. Ke3 {[%emt 0:00:50]} Kd5 {[%emt 0:00:10]} 43. Kd3 {[%emt 0:00:20]} b6 {[%emt 0:00:42]} 44. Rxc2 {[%emt 0:00:18]} Rxc2 {[%emt 0:00:12]} 45. Kxc2 {[%emt 0:00:11]} g6 {[%emt 0:01:58]} 46. Kd3 {[%emt 0:00:17]} h6 {[%emt 0:01:22]} 47. h4 {[%emt 0:01:21]} Ke6 {[%emt 0:00:59]} 48. Ke4 {[%emt 0:02:38]} Kd7 {[%emt 0:02:13]} 49. Kd5 {[%emt 0:00:51]} Kc7 {[%emt 0:01:47]} 50. h5 {[%emt 0:02:36]} Kd7 {[%emt 0:05:30]} 51. g4 {[%emt 0:02:22]} gxh5 {[%emt 0:01:03]} 52. gxh5 {[%emt 0:01:08]} 1-0

[Event "Nordic Youth-ch A 2019"]
[Site "Borgarnes"]
[Date "2019.02.17"]
[Round "5.1"]
[White "Nazarova, Anastasia"]
[Black "Kristensen, Bjarke Hautop"]
[Result "0-1"]
[ECO "B90"]
[WhiteElo "2176"]
[BlackElo "2212"]
[Annotator "NA"]
[PlyCount "78"]
[EventDate "2019.02.03"]
[EventType "swiss"]
[EventCountry "ISL"]
[SourceTitle "playchess.com"]
[Source "ChessBase"]
[SourceQuality "1"]
[TimeControl "5400+30"]

1. e4 {[%emt 0:00:00]} c5 {[%emt 0:00:00]} 2. Nf3 {[%emt 0:00:00]} d6 {[%emt 0:00:00]} 3. d4 {[%emt 0:00:00]} cxd4 {[%emt 0:00:00]} 4. Nxd4 {[%emt 0:00:00]} Nf6 {[%emt 0:00:00]} 5. Nc3 {[%emt 0:00:00]} a6 {[%emt 0:00:01]} 6. Be3 {[%emt 0:00:00]} Ng4 {[%emt 0:00:05]} 7. Bc1 {[%emt 0:00:19]} Nf6 {[%emt 0:00:04]} 8. f3 {[%emt 0:05:00]} e5 {[%emt 0:00:07]} 9. Nb3 {[%emt 0:00:07]} Be6 {[%emt 0:00:03]} 10. Be3 {[%emt 0:00:06]} h5 {[%emt 0:00:05]} 11. Qd2 {[%emt 0:00:11]} Nbd7 {[%emt 0:00:40]} 12. O-O-O {[%emt 0:00:39]} Rc8 {[%emt 0:00:52]} 13. Kb1 {[%emt 0:00:39]} Be7 {[%emt 0:00:35]} 14. h3 {[%emt 0:00:39]} b5 {[%emt 0:00:59]} 15. Bd3 {[%emt 0:03:13]} Nb6 {[%emt 0:10:52]} 16. Qf2 {[%emt 0:18:28]} Nfd7 {[%emt 0:05:29]} 17. f4 {[%emt 0:23:04]} Rxc3 {[%emt 0:05:05]} 18. bxc3 {[%emt 0:00:03]} Na4 {[%emt 0:00:10]} 19. Qd2 {[%emt 0:00:24]} Qc7 {[%emt 0:02:36]} 20. Ka1 {[%emt 0:04:40]} Nxc3 {[%emt 0:06:45]} 21. Rdf1 {[%emt 0:00:43]} f6 {[%emt 0:00:30]} 22. g4 {[%emt 0:19:11]} a5 23. g5 b4 {[%emt 0:33:01]} 24. fxe5 {[%emt 0:11:00]} dxe5 {[%emt 0:02:08]} 25. gxf6 {[%emt 0:00:04]} gxf6 {[%emt 0:00:07]} 26. Rfg1 {[%emt 0:05:21]} Qc6 {[%emt 0:00:24]} 27. Qc1 {[%emt 0:05:36]} a4 {[%emt 0:03:05]} 28. Nd4 {[%emt 0:02:15]} exd4 {[%emt 0:06:15]} 29. Bxd4 {[%emt 0:00:03]} Bf7 {[%emt 0:00:25]} 30. Bxc3 {[%emt 0:01:56]} bxc3 {[%emt 0:00:02]} 31. Rg7 {[%emt 0:00:35]} Qe6 {[%emt 0:01:07]} 32. Rxf7 {[%emt 0:00:03]} Kxf7 {[%emt 0:00:04]} 33. Rg1 {[%emt 0:01:12]} Ne5 {[%emt 0:00:04]} 34. Be2 {[%emt 0:00:35]} Qb6 {[%emt 0:00:23]} 35. Rf1 {[%emt 0:00:42]} a3 {[%emt 0:01:14]} 36. Rf5 {[%emt 0:00:34]} Rg8 {[%emt 0:01:51]} 37. Bxh5+ {[%emt 0:00:25]} Ke6 {[%emt 0:00:01]} 38. Bg4 {[%emt 0:00:38]} Rxg4 {[%emt 0:02:00]} 39. hxg4 {[%emt 0:00:29]} Nc4 {[%emt 0:00:02]} 0-1

[Event "Nordic Youth-ch A 2019"]
[Site "Borgarnes"]
[Date "2019.02.17"]
[Round "5.2"]
[White "Thorgeirsson, Jon Kristinn"]
[Black "Fossan, Andreas"]
[Result "1-0"]
[ECO "C11"]
[WhiteElo "2306"]
[BlackElo "2025"]
[Annotator "NA"]
[PlyCount "37"]
[EventDate "2019.02.03"]
[EventType "swiss"]
[EventCountry "ISL"]
[SourceTitle "playchess.com"]
[Source "ChessBase"]
[SourceQuality "1"]
[TimeControl "5400+30"]

1. e4 {[%emt 0:02:09]} e6 {[%emt 0:00:00]} 2. d4 {[%emt 0:00:07]} d5 {[%emt 0:00:00]} 3. Nc3 {[%emt 0:00:09]} Nf6 {[%emt 0:00:29]} 4. Bg5 {[%emt 0:00:17]} dxe4 {[%emt 0:01:20]} 5. Nxe4 {[%emt 0:00:12]} Be7 {[%emt 0:00:08]} 6. Bxf6 {[%emt 0:00:27]} gxf6 {[%emt 0:00:23]} 7. Nf3 {[%emt 0:00:39]} f5 {[%emt 0:00:14]} 8. Ng3 {[%emt 0:00:06]} c5 {[%emt 0:10:31]} 9. d5 {[%emt 0:07:17]} O-O {[%emt 0:24:44]} 10. Qd2 {[%emt 0:10:12]} Qxd5 {[%emt 0:09:54]} 11. Qh6 {[%emt 0:00:55]} f6 {[%emt 0:09:50]} 12. Qh4 {[%emt 0:04:43]} Nd7 13. Bc4 {[%emt 0:04:01]} Qc6 {[%emt 0:09:38]} 14. Nxf5 Bd8 {[%emt 0:10:31]} 15. Qg4+ {[%emt 0:05:31]} Kf7 16. O-O-O Ne5 {[%emt 0:09:56]} 17. Qg7+ {[%emt 0:00:18]} Ke8 18. Rxd8+ {[%emt 0:00:08]} Kxd8 {[%emt 0:00:10]} 19. Qe7# 1-0

[Event "Nordic Youth-ch A 2019"]
[Site "Borgarnes"]
[Date "2019.02.17"]
[Round "5.3"]
[White "Keinanen, Toivo"]
[Black "Finnsson, Eli W."]
[Result "1-0"]
[ECO "B23"]
[WhiteElo "2403"]
[BlackElo "1659"]
[Annotator "NA"]
[PlyCount "49"]
[EventDate "2019.02.03"]
[EventType "swiss"]
[EventCountry "ISL"]
[SourceTitle "playchess.com"]
[Source "ChessBase"]
[SourceQuality "1"]
[TimeControl "5400+30"]

1. e4 {[%emt 0:00:00]} c5 {[%emt 0:00:00]} 2. Nc3 {[%emt 0:00:34]} d6 {[%emt 0:00:49]} 3. d4 {[%emt 0:00:35]} cxd4 {[%emt 0:00:13]} 4. Qxd4 {[%emt 0:00:02]} a6 {[%emt 0:02:03]} 5. b3 {[%emt 0:01:52]} Nf6 {[%emt 0:02:16]} 6. Bb2 {[%emt 0:00:21]} Nbd7 {[%emt 0:03:33]} 7. O-O-O {[%emt 0:04:55]} e5 {[%emt 0:04:12]} 8. Qd2 {[%emt 0:02:54]} Nc5 {[%emt 0:03:29]} 9. f4 {[%emt 0:01:40]} Ncxe4 {[%emt 0:07:46]} 10. Nxe4 {[%emt 0:02:08]} Nxe4 {[%emt 0:00:06]} 11. Qe1 {[%emt 0:01:00]} f5 {[%emt 0:06:21]} 12. Bc4 {[%emt 0:06:43]} Qc7 {[%emt 0:08:42]} 13. Nf3 {[%emt 0:02:33]} exf4 {[%emt 0:03:59]} 14. Ng5 {[%emt 0:01:05]} Be7 {[%emt 0:04:32]} 15. Nxe4 {[%emt 0:00:40]} fxe4 {[%emt 0:01:06]} 16. Bxg7 {[%emt 0:01:44]} Bg4 {[%emt 0:03:20]} 17. Bxh8 {[%emt 0:01:40]} Bxd1 {[%emt 0:00:13]} 18. Qxd1 {[%emt 0:00:46]} O-O-O {[%emt 0:04:42]} 19. Bb2 {[%emt 0:03:18]} Kb8 {[%emt 0:01:48]} 20. Bd5 {[%emt 0:01:18]} e3 {[%emt 0:02:36]} 21. Qd3 {[%emt 0:00:09]} Bg5 {[%emt 0:01:07]} 22. Kb1 {[%emt 0:00:12]} Re8 {[%emt 0:03:04]} 23. Bf3 {[%emt 0:00:25]} Qe7 {[%emt 0:00:55]} 24. Ba3 {[%emt 0:00:06]} Rd8 25. Rd1 {[%emt 0:00:19]} 1-0

[Event "Nordic Youth-ch A 2019"]
[Site "Borgarnes"]
[Date "2019.02.17"]
[Round "5.4"]
[White "Crevatin, Leo"]
[Black "Heimisson, Hilmir Freyr"]
[Result "1/2-1/2"]
[ECO "E32"]
[WhiteElo "2190"]
[BlackElo "2394"]
[Annotator "NA"]
[PlyCount "52"]
[EventDate "2019.02.03"]
[EventType "swiss"]
[EventCountry "ISL"]
[SourceTitle "playchess.com"]
[Source "ChessBase"]
[SourceQuality "1"]
[TimeControl "5400+30"]

1. d4 {[%emt 0:00:00]} Nf6 {[%emt 0:02:05]} 2. c4 {[%emt 0:00:00]} e6 {[%emt 0:00:04]} 3. Nc3 {[%emt 0:00:00]} Bb4 {[%emt 0:00:03]} 4. Qc2 {[%emt 0:00:00]} O-O {[%emt 0:00:05]} 5. Nf3 {[%emt 0:01:01]} c5 {[%emt 0:00:28]} 6. dxc5 {[%emt 0:00:09]} Na6 {[%emt 0:00:03]} 7. g3 {[%emt 0:00:07]} Nxc5 {[%emt 0:00:02]} 8. Bg2 {[%emt 0:00:09]} Nce4 {[%emt 0:00:01]} 9. O-O {[%emt 0:00:09]} Bxc3 {[%emt 0:00:03]} 10. bxc3 {[%emt 0:00:07]} Qc7 {[%emt 0:00:01]} 11. Nd4 {[%emt 0:03:15]} d5 {[%emt 0:00:10]} 12. cxd5 {[%emt 0:03:47]} exd5 {[%emt 0:00:05]} 13. Bf4 {[%emt 0:13:41]} Qc4 {[%emt 0:01:18]} 14. Rac1 {[%emt 0:01:53]} Bd7 {[%emt 0:14:07]} 15. Qb3 {[%emt 0:08:24]} Rfc8 {[%emt 0:26:18]} 16. Qxb7 {[%emt 0:14:42]} Nc5 {[%emt 0:02:42]} 17. Qb4 {[%emt 0:02:37]} Na4 {[%emt 0:00:12]} 18. Qxc4 {[%emt 0:05:27]} Rxc4 {[%emt 0:10:06]} 19. Be5 {[%emt 0:00:39]} Nxc3 {[%emt 0:00:10]} 20. Bxf6 {[%emt 0:00:15]} gxf6 {[%emt 0:00:30]} 21. Bxd5 {[%emt 0:00:04]} Rxd4 {[%emt 0:00:30]} 22. Bxa8 {[%emt 0:00:22]} Nxe2+ 23. Kg2 {[%emt 0:00:01]} Nxc1 {[%emt 0:00:22]} 24. Rxc1 {[%emt 0:04:14]} Rd2 {[%emt 0:02:33]} 25. Rc7 {[%emt 0:03:35]} a5 26. a4 Bxa4 {[%emt 0:07:07]} 1/2-1/2

[Event "Nordic Youth-ch A 2019"]
[Site "Borgarnes"]
[Date "2019.02.17"]
[Round "5.5"]
[White "Stefansson, Vignir Vatnar"]
[Black "Sjoberg, Isak"]
[Result "1-0"]
[ECO "E73"]
[WhiteElo "2263"]
[BlackElo "2250"]
[Annotator "NA"]
[PlyCount "53"]
[EventDate "2019.02.03"]
[EventType "swiss"]
[EventCountry "ISL"]
[SourceTitle "playchess.com"]
[Source "ChessBase"]
[SourceQuality "1"]
[TimeControl "5400+30"]

1. d4 {[%emt 0:00:00]} Nf6 {[%emt 0:00:42]} 2. c4 {[%emt 0:00:03]} g6 {[%emt 0:00:21]} 3. Nc3 {[%emt 0:00:09]} Bg7 {[%emt 0:00:06]} 4. e4 {[%emt 0:00:08]} d6 {[%emt 0:00:02]} 5. Be2 {[%emt 0:00:07]} O-O {[%emt 0:00:06]} 6. Be3 {[%emt 0:00:40]} c5 {[%emt 0:00:05]} 7. e5 {[%emt 0:02:57]} dxe5 {[%emt 0:06:52]} 8. dxe5 {[%emt 0:04:20]} Qxd1+ {[%emt 0:03:19]} 9. Rxd1 {[%emt 0:08:07]} Ng4 {[%emt 0:02:06]} 10. Bxc5 {[%emt 0:02:51]} Nc6 {[%emt 0:06:29]} 11. f4 {[%emt 0:05:49]} b6 {[%emt 0:02:45]} 12. Bf2 {[%emt 0:06:51]} Nb4 {[%emt 0:28:45]} 13. Bf3 {[%emt 0:08:48]} Rb8 {[%emt 0:09:38]} 14. a3 {[%emt 0:00:38]} Nxf2 {[%emt 0:00:10]} 15. Kxf2 {[%emt 0:00:33]} Na6 {[%emt 0:04:40]} 16. Nd5 {[%emt 0:02:52]} Re8 {[%emt 0:00:58]} 17. Ne2 {[%emt 0:01:02]} Bb7 {[%emt 0:02:58]} 18. b4 {[%emt 0:04:23]} e6 {[%emt 0:01:38]} 19. Ne3 {[%emt 0:01:05]} f6 {[%emt 0:00:11]} 20. exf6 {[%emt 0:00:22]} Bxf6 {[%emt 0:03:12]} 21. Rd7 {[%emt 0:00:08]} Bxf3 {[%emt 0:00:14]} 22. Kxf3 {[%emt 0:03:26]} Ra8 {[%emt 0:01:39]} 23. Rhd1 {[%emt 0:00:49]} Nb8 24. Rc7 Bb2 {[%emt 0:04:20]} 25. Ng4 {[%emt 0:03:04]} Rf8 26. Nd4 {[%emt 0:07:54]} Na6 {[%emt 0:01:22]} 27. Rd7 1-0

[Event "Nordic Youth-ch A 2019"]
[Site "Borgarnes"]
[Date "2019.02.17"]
[Round "5.7"]
[White "Tryggestad, Andreas Garberg"]
[Black "Carlsson, Ludvig"]
[Result "0-1"]
[ECO "D17"]
[WhiteElo "2351"]
[BlackElo "2217"]
[Annotator "NA"]
[PlyCount "48"]
[EventDate "2019.02.03"]
[EventType "swiss"]
[EventCountry "ISL"]
[SourceTitle "playchess.com"]
[Source "ChessBase"]
[SourceQuality "1"]
[TimeControl "5400+30"]

1. d4 {[%emt 0:01:25]} d5 {[%emt 0:00:00]} 2. c4 {[%emt 0:00:04]} c6 {[%emt 0:00:00]} 3. Nc3 {[%emt 0:00:05]} Nf6 {[%emt 0:00:00]} 4. Nf3 {[%emt 0:00:03]} dxc4 {[%emt 0:00:04]} 5. a4 {[%emt 0:00:05]} Bf5 {[%emt 0:00:08]} 6. Ne5 {[%emt 0:00:04]} e6 {[%emt 0:00:07]} 7. g3 {[%emt 0:02:01]} Bb4 {[%emt 0:00:08]} 8. Be3 {[%emt 0:15:15]} Ne4 {[%emt 0:09:10]} 9. Qc1 {[%emt 0:00:11]} Qa5 {[%emt 0:01:21]} 10. f3 {[%emt 0:02:21]} Nxc3 {[%emt 0:01:42]} 11. bxc3 {[%emt 0:03:26]} Bxc3+ {[%emt 0:00:12]} 12. Bd2 {[%emt 0:00:39]} Bxd2+ {[%emt 0:00:28]} 13. Qxd2 {[%emt 0:00:02]} c3 {[%emt 0:20:37]} 14. Qc1 {[%emt 0:01:09]} c2+ {[%emt 0:04:21]} 15. Qd2 {[%emt 0:02:28]} Qxd2+ {[%emt 0:02:19]} 16. Kxd2 {[%emt 0:01:29]} Nd7 {[%emt 0:00:38]} 17. Nc4 {[%emt 0:00:42]} Ke7 {[%emt 0:01:04]} 18. e4 {[%emt 0:00:08]} Bg6 {[%emt 0:00:05]} 19. Bd3 {[%emt 0:03:03]} Rhd8 {[%emt 0:06:51]} 20. Ke3 {[%emt 0:15:28]} f6 {[%emt 0:07:28]} 21. Bxc2 {[%emt 0:01:37]} e5 {[%emt 0:08:26]} 22. Rhd1 exd4+ {[%emt 0:00:30]} 23. Rxd4 {[%emt 0:00:34]} Ne5 {[%emt 0:00:00]} 24. Nxe5 {[%emt 0:00:18]} fxe5 {[%emt 0:00:18]} 0-1

[Event "Nordic Youth-ch A 2019"]
[Site "Borgarnes"]
[Date "2019.02.17"]
[Round "5.8"]
[White "Multanen, Jimi"]
[Black "Fjallheim, Leif Reinert"]
[Result "1/2-1/2"]
[ECO "A05"]
[WhiteElo "1544"]
[BlackElo "1712"]
[Annotator "NA"]
[PlyCount "82"]
[EventDate "2019.02.03"]
[EventType "swiss"]
[EventCountry "ISL"]
[SourceTitle "playchess.com"]
[Source "ChessBase"]
[SourceQuality "1"]
[TimeControl "5400+30"]

1. Nf3 {[%emt 1:16:53]} Nf6 {[%emt 1:07:50]} 2. g3 {[%emt 0:00:30]} g6 {[%emt 0:00:30]} 3. b3 {[%emt 0:00:30]} d6 {[%emt 0:00:30]} 4. d4 {[%emt 0:00:30]} Bg7 {[%emt 0:00:30]} 5. Bb2 {[%emt 0:00:30]} c6 {[%emt 0:00:30]} 6. Bg2 {[%emt 0:00:30]} Nbd7 {[%emt 0:00:30]} 7. O-O {[%emt 0:00:30]} O-O {[%emt 0:00:30]} 8. c4 {[%emt 0:00:30]} d5 {[%emt 0:00:30]} 9. Nc3 {[%emt 0:00:30]} Nb6 {[%emt 0:00:30]} 10. cxd5 {[%emt 0:00:30]} Nbxd5 {[%emt 0:00:30]} 11. Re1 {[%emt 0:00:30]} Nxc3 {[%emt 0:00:30]} 12. Bxc3 {[%emt 0:00:30]} Ne4 {[%emt 0:00:30]} 13. Bb2 {[%emt 0:00:30]} f5 {[%emt 0:00:30]} 14. Nd2 {[%emt 0:00:30]} Nxd2 {[%emt 0:00:30]} 15. Qxd2 {[%emt 0:00:30]} e5 {[%emt 0:00:30]} 16. d5 {[%emt 0:00:30]} e4 {[%emt 0:00:30]} 17. Red1 {[%emt 0:00:30]} Qxd5 {[%emt 0:00:30]} 18. Qxd5+ {[%emt 0:00:30]} cxd5 {[%emt 0:00:30]} 19. Bxg7 {[%emt 0:00:30]} Kxg7 {[%emt 0:00:30]} 20. Rxd5 {[%emt 0:00:30]} Be6 {[%emt 0:00:30]} 21. Rd6 {[%emt 0:00:30]} Kf7 {[%emt 0:00:30]} 22. f3 {[%emt 0:00:30]} Ke7 {[%emt 0:00:30]} 23. Rad1 {[%emt 0:00:30]} exf3 {[%emt 0:00:30]} 24. Bxf3 {[%emt 0:00:30]} Rab8 {[%emt 0:00:30]} 25. R6d4 {[%emt 0:00:30]} b6 {[%emt 0:00:30]} 26. Ra4 {[%emt 0:00:30]} a5 {[%emt 0:01:37]} 27. b4 {[%emt 0:06:46]} axb4 {[%emt 0:06:21]} 28. Ra7+ {[%emt 0:02:13]} Kf6 {[%emt 0:00:13]} 29. Rb1 {[%emt 0:01:21]} Rf7 {[%emt 0:01:17]} 30. Ra4 {[%emt 0:00:19]} b3 {[%emt 0:05:16]} 31. axb3 {[%emt 0:00:11]} Rd7 {[%emt 0:02:18]} 32. Rb2 {[%emt 0:03:12]} Rbd8 {[%emt 0:02:27]} 33. Rb4 {[%emt 0:00:54]} Rd6 {[%emt 0:00:34]} 34. Kf2 {[%emt 0:00:31]} g5 {[%emt 0:00:39]} 35. Ra2 {[%emt 0:00:49]} g4 {[%emt 0:00:36]} 36. Bg2 {[%emt 0:00:27]} Rb8 {[%emt 0:01:01]} 37. Ra6 {[%emt 0:00:58]} h5 {[%emt 0:00:40]} 38. Ke3 {[%emt 0:00:49]} Kg5 {[%emt 0:00:32]} 39. Rb5 {[%emt 0:00:50]} Kf6 {[%emt 0:01:59]} 40. Rb4 {[%emt 0:00:16]} Kg5 {[%emt 0:00:13]} 41. Rb5 {[%emt 0:00:08]} Kf6 {[%emt 0:00:05] Ke4 Ke5+} 1/2-1/2